[Event "Betsys MČR v online bleskovém šachu 2021"]
[Site "Chess.com"]
[Date "2021.04.17"]
[Round "8"]
[White "TomasOrnet1"]
[Black "doktorovak"]
[Result "0-1"]
[WhiteElo "1492"]
[BlackElo "1669"]
[TimeControl "180+1"]
[EndTime "10:20:11 PDT"]
[Termination "Uživatel doktorovak zvítězil na čas"]

1. e4 {[%clk 0:03:00.9]} 1... c5 {[%clk 0:02:59.8]} 2. Bc4 {[%clk 0:02:55.1]}
2... e6 {[%clk 0:02:59.3]} 3. Nf3 {[%clk 0:02:54.1]} 3... Nc6 {[%clk 0:02:59.2]}
4. d3 {[%clk 0:02:53.3]} 4... Nge7 {[%clk 0:02:58.4]} 5. Be3 {[%clk 0:02:53]}
5... Ng6 {[%clk 0:02:57.8]} 6. O-O {[%clk 0:02:51.3]} 6... Be7 {[%clk
0:02:57.4]} 7. c3 {[%clk 0:02:40]} 7... O-O {[%clk 0:02:56.7]} 8. Qd2 {[%clk
0:02:39.2]} 8... d5 {[%clk 0:02:56]} 9. exd5 {[%clk 0:02:38.1]} 9... exd5 {[%clk
0:02:56.2]} 10. Bb3 {[%clk 0:02:37.7]} 10... d4 {[%clk 0:02:51.1]} 11. cxd4
{[%clk 0:02:34.7]} 11... cxd4 {[%clk 0:02:51.3]} 12. Nxd4 {[%clk 0:02:33.6]}
12... Nxd4 {[%clk 0:02:50.6]} 13. Qc3 {[%clk 0:02:02.6]} 13... Bf6 {[%clk
0:02:48.5]} 14. Bxd4 {[%clk 0:01:53.1]} 14... Bxd4 {[%clk 0:02:46.4]} 15. Qc2
{[%clk 0:01:52.9]} 15... Bf5 {[%clk 0:02:43.6]} 16. Nc3 {[%clk 0:01:49.7]} 16...
Rc8 {[%clk 0:02:40.9]} 17. Qd2 {[%clk 0:01:45.6]} 17... Bxc3 {[%clk 0:02:40.2]}
18. bxc3 {[%clk 0:01:44.4]} 18... Qxd3 {[%clk 0:02:40]} 19. Qg5 {[%clk
0:01:32.9]} 19... Rxc3 {[%clk 0:02:32.4]} 20. h4 {[%clk 0:01:31]} 20... Qe4
{[%clk 0:02:17.4]} 21. h5 {[%clk 0:01:26.6]} 21... Nf4 {[%clk 0:02:09.6]} 22.
Rfe1 {[%clk 0:01:21.9]} 22... Ne2+ {[%clk 0:01:41.6]} 23. Rxe2 {[%clk
0:01:16.5]} 23... Qxe2 {[%clk 0:01:40.9]} 24. Qxf5 {[%clk 0:01:15.7]} 24... Rc6
{[%clk 0:01:28.9]} 25. Qg5 {[%clk 0:00:19.7]} 25... Rf6 {[%clk 0:01:24.2]} 26.
Qg3 {[%clk 0:00:17]} 26... Qxh5 {[%clk 0:01:21.6]} 27. Bd5 {[%clk 0:00:12.3]}
27... b6 {[%clk 0:01:18.4]} 28. Bb3 {[%clk 0:00:07.3]} 28... Rh6 {[%clk
0:01:18.1]} 29. f3 {[%clk 0:00:01.1]} 29... Qh1+ {[%clk 0:01:13.5]} 0-1

[Event "Betsys MČR v online bleskovém šachu 2021"]
[Site "Chess.com"]
[Date "2021.04.17"]
[Round "8"]
[White "Herracek"]
[Black "fortale"]
[Result "1-0"]
[WhiteElo "2612"]
[BlackElo "2333"]
[TimeControl "180+1"]
[EndTime "10:20:12 PDT"]
[Termination "Uživatel Herracek zvítězil po vzdání soupeře"]

1. c4 {[%clk 0:03:00.9]} 1... Nf6 {[%clk 0:02:59.8]} 2. g3 {[%clk 0:03:00.9]}
2... g6 {[%clk 0:03:00]} 3. Bg2 {[%clk 0:03:01.5]} 3... Bg7 {[%clk 0:03:00.4]}
4. Nc3 {[%clk 0:03:02.3]} 4... d6 {[%clk 0:03:00.9]} 5. d3 {[%clk 0:03:02.5]}
5... O-O {[%clk 0:03:00.9]} 6. Bg5 {[%clk 0:03:03]} 6... c6 {[%clk 0:03:00.8]}
7. Qd2 {[%clk 0:03:02.8]} 7... Qa5 {[%clk 0:02:54.2]} 8. Bh6 {[%clk 0:02:57.4]}
8... Bxh6 {[%clk 0:02:48.8]} 9. Qxh6 {[%clk 0:02:58.3]} 9... Qb6 {[%clk
0:02:46.4]} 10. Qd2 {[%clk 0:02:57.8]} 10... Na6 {[%clk 0:02:40.1]} 11. Nf3
{[%clk 0:02:56.6]} 11... Qa5 {[%clk 0:02:37.8]} 12. O-O {[%clk 0:02:50.5]} 12...
Qh5 {[%clk 0:02:36.2]} 13. Rfe1 {[%clk 0:02:47.2]} 13... Bh3 {[%clk 0:02:35]}
14. Bh1 {[%clk 0:02:47.3]} 14... Nc5 {[%clk 0:02:31.9]} 15. b4 {[%clk
0:02:42.2]} 15... Ne6 {[%clk 0:02:27.2]} 16. b5 {[%clk 0:02:39.1]} 16... Rac8
{[%clk 0:02:25.8]} 17. bxc6 {[%clk 0:02:39]} 17... bxc6 {[%clk 0:02:25.5]} 18.
Rab1 {[%clk 0:02:39.5]} 18... Rb8 {[%clk 0:02:19.9]} 19. Qe3 {[%clk 0:02:39.5]}
19... c5 {[%clk 0:02:15.8]} 20. Nd5 {[%clk 0:02:33.5]} 20... Rxb1 {[%clk
0:01:56]} 21. Nxe7+ {[%clk 0:02:21.1]} 21... Kg7 {[%clk 0:01:53.1]} 22. Rxb1
{[%clk 0:02:22]} 22... Ng4 {[%clk 0:01:44.1]} 23. Qd2 {[%clk 0:02:15.8]} 23...
Re8 {[%clk 0:01:37.3]} 24. Qc3+ {[%clk 0:01:58.6]} 24... f6 {[%clk 0:01:00.9]}
25. Rb7 {[%clk 0:01:57.6]} 25... Kf8 {[%clk 0:00:52.4]} 26. Nd5 {[%clk
0:01:47.3]} 26... Ne5 {[%clk 0:00:48.7]} 27. Nxf6 {[%clk 0:01:30.6]} 27... Nd4
{[%clk 0:00:23]} 28. Nxd4 {[%clk 0:01:06.6]} 28... cxd4 {[%clk 0:00:22.9]} 29.
Qxd4 {[%clk 0:01:05.9]} 1-0

[Event "Betsys MČR v online bleskovém šachu 2021"]
[Site "Chess.com"]
[Date "2021.04.17"]
[Round "8"]
[White "SamikGame"]
[Black "adiklan"]
[Result "1-0"]
[WhiteElo "1677"]
[BlackElo "1897"]
[TimeControl "180+1"]
[EndTime "10:20:13 PDT"]
[Termination "Uživatel SamikGame zvítězil matem"]

1. e4 {[%clk 0:02:56.1]} 1... c5 {[%clk 0:02:53.8]} 2. c4 {[%clk 0:02:53.2]}
2... g6 {[%clk 0:02:45.7]} 3. Nc3 {[%clk 0:02:46.7]} 3... Bg7 {[%clk 0:02:45.6]}
4. g3 {[%clk 0:02:44.7]} 4... Nc6 {[%clk 0:02:43.5]} 5. Bg2 {[%clk 0:02:42.2]}
5... d6 {[%clk 0:02:43.6]} 6. Nge2 {[%clk 0:02:39.4]} 6... f5 {[%clk 0:02:43.7]}
7. O-O {[%clk 0:02:34.2]} 7... Nf6 {[%clk 0:02:43]} 8. d3 {[%clk 0:02:30.4]}
8... O-O {[%clk 0:02:41]} 9. h3 {[%clk 0:02:26.4]} 9... Rb8 {[%clk 0:02:20.6]}
10. Be3 {[%clk 0:02:24.2]} 10... e5 {[%clk 0:02:13.9]} 11. exf5 {[%clk
0:02:19.8]} 11... Bxf5 {[%clk 0:02:10.9]} 12. f4 {[%clk 0:02:18.6]} 12... Nd4
{[%clk 0:02:07.1]} 13. fxe5 {[%clk 0:02:16.2]} 13... dxe5 {[%clk 0:02:02.2]} 14.
Bg5 {[%clk 0:02:08.6]} 14... Nxe2+ {[%clk 0:01:57]} 15. Nxe2 {[%clk 0:02:04]}
15... Bxd3 {[%clk 0:01:54.2]} 16. Bd5+ {[%clk 0:01:58.3]} 16... Nxd5 {[%clk
0:01:27.8]} 17. Bxd8 {[%clk 0:01:57.4]} 17... Rxf1+ {[%clk 0:01:16.9]} 18. Qxf1
{[%clk 0:01:55.6]} 18... Rxd8 {[%clk 0:00:56.2]} 19. cxd5 {[%clk 0:01:51.6]}
19... Rxd5 {[%clk 0:00:49.8]} 20. Rd1 {[%clk 0:01:48.5]} 20... e4 {[%clk
0:00:46.5]} 21. Qg2 {[%clk 0:01:40.5]} 21... Re5 {[%clk 0:00:15.4]} 22. Nf4
{[%clk 0:01:34.2]} 22... Bb5 {[%clk 0:00:11.3]} 23. Rd8+ {[%clk 0:01:28.7]}
23... Kf7 {[%clk 0:00:10.8]} 24. Qc2 {[%clk 0:01:18.8]} 24... Bc6 {[%clk
0:00:03.2]} 25. Qc4+ {[%clk 0:01:14.6]} 25... Ke7 {[%clk 0:00:03.2]} 26. Ra8
{[%clk 0:01:05.4]} 26... Rf5 {[%clk 0:00:01.7]} 27. Qe6# {[%clk 0:01:01.4]} 1-0

[Event "Betsys MČR v online bleskovém šachu 2021"]
[Site "Chess.com"]
[Date "2021.04.17"]
[Round "8"]
[White "Petulak08"]
[Black "Bagr92"]
[Result "0-1"]
[WhiteElo "1179"]
[BlackElo "1531"]
[TimeControl "180+1"]
[EndTime "10:20:13 PDT"]
[Termination "Uživatel Bagr92 zvítězil matem"]

1. e4 {[%clk 0:02:51.3]} 1... c5 {[%clk 0:02:47.7]} 2. Nf3 {[%clk 0:02:31]} 2...
e6 {[%clk 0:02:48.6]} 3. d4 {[%clk 0:02:30.9]} 3... cxd4 {[%clk 0:02:49.5]} 4.
Nxd4 {[%clk 0:02:30.8]} 4... Nf6 {[%clk 0:02:48.5]} 5. Nc3 {[%clk 0:02:30.9]}
5... d6 {[%clk 0:02:47.4]} 6. Bg5 {[%clk 0:02:28.9]} 6... Be7 {[%clk 0:02:46.5]}
7. Bd3 {[%clk 0:02:25.3]} 7... O-O {[%clk 0:02:45.6]} 8. Qf3 {[%clk 0:02:24.6]}
8... h6 {[%clk 0:02:45.5]} 9. Bf4 {[%clk 0:02:21.5]} 9... Nc6 {[%clk 0:02:44.8]}
10. Ndb5 {[%clk 0:02:16]} 10... a6 {[%clk 0:02:43.7]} 11. Na3 {[%clk 0:02:16.1]}
11... Nd4 {[%clk 0:02:41.8]} 12. Qe3 {[%clk 0:02:12.9]} 12... e5 {[%clk
0:02:33.6]} 13. Bg3 {[%clk 0:02:04.4]} 13... b5 {[%clk 0:02:30.6]} 14. Ne2
{[%clk 0:02:02.2]} 14... Bb7 {[%clk 0:02:19.4]} 15. Nxd4 {[%clk 0:02:00.8]}
15... exd4 {[%clk 0:02:18.2]} 16. Qxd4 {[%clk 0:02:01.1]} 16... d5 {[%clk
0:02:17.4]} 17. exd5 {[%clk 0:02:00.7]} 17... Nxd5 {[%clk 0:02:16.9]} 18. Be4
{[%clk 0:01:59.6]} 18... Bf6 {[%clk 0:02:15.6]} 19. Qd3 {[%clk 0:01:43]} 19...
Re8 {[%clk 0:02:11.8]} 20. O-O {[%clk 0:01:40.1]} 20... Rxe4 {[%clk 0:01:55.1]}
21. Qxe4 {[%clk 0:01:35.7]} 21... Bxb2 {[%clk 0:01:55.6]} 22. Rad1 {[%clk
0:01:33.4]} 22... Bxa3 {[%clk 0:01:49.1]} 23. Rd3 {[%clk 0:01:29.4]} 23... Bb4
{[%clk 0:01:28.4]} 24. Rfd1 {[%clk 0:01:29.1]} 24... Qe8 {[%clk 0:01:20.7]} 25.
Qg4 {[%clk 0:01:09.1]} 25... Rd8 {[%clk 0:00:44.2]} 26. Rxd5 {[%clk 0:01:01.8]}
26... Rxd5 {[%clk 0:00:42.1]} 27. Qxb4 {[%clk 0:01:01.8]} 27... Rxd1+ {[%clk
0:00:40.8]} 28. Qe1 {[%clk 0:00:30.8]} 28... Rxe1# {[%clk 0:00:36.4]} 0-1

[Event "Betsys MČR v online bleskovém šachu 2021"]
[Site "Chess.com"]
[Date "2021.04.17"]
[Round "8"]
[White "Alesbar"]
[Black "Milan_Jancek"]
[Result "1/2-1/2"]
[WhiteElo "1614"]
[BlackElo "1816"]
[TimeControl "180+1"]
[EndTime "10:20:20 PDT"]
[Termination "Remíza opakováním pozice"]

1. Nf3 {[%clk 0:03:00.9]} 1... d5 {[%clk 0:02:58.4]} 2. g3 {[%clk 0:03:00.4]}
2... Nf6 {[%clk 0:02:57.6]} 3. Bg2 {[%clk 0:03:00.1]} 3... c6 {[%clk 0:02:56.7]}
4. O-O {[%clk 0:02:59.6]} 4... g6 {[%clk 0:02:55.5]} 5. d4 {[%clk 0:02:59]} 5...
Bg7 {[%clk 0:02:55.9]} 6. c3 {[%clk 0:02:58.9]} 6... O-O {[%clk 0:02:56.5]} 7.
Nbd2 {[%clk 0:02:58.4]} 7... Bd7 {[%clk 0:02:57]} 8. Re1 {[%clk 0:02:55.8]} 8...
Re8 {[%clk 0:02:54.9]} 9. Ne5 {[%clk 0:02:53.1]} 9... Bf5 {[%clk 0:02:35.1]} 10.
Ndf3 {[%clk 0:02:28.9]} 10... Nbd7 {[%clk 0:02:23.6]} 11. Nh4 {[%clk 0:02:21.9]}
11... Be6 {[%clk 0:02:09.5]} 12. Nhf3 {[%clk 0:02:06.9]} 12... Nxe5 {[%clk
0:02:08.8]} 13. Nxe5 {[%clk 0:02:06.4]} 13... Nd7 {[%clk 0:02:09.7]} 14. Nxd7
{[%clk 0:02:00.5]} 14... Bxd7 {[%clk 0:02:09.6]} 15. e4 {[%clk 0:01:59.5]} 15...
dxe4 {[%clk 0:02:07.7]} 16. Bxe4 {[%clk 0:01:58.8]} 16... e5 {[%clk 0:02:08.4]}
17. dxe5 {[%clk 0:01:49.6]} 17... Bxe5 {[%clk 0:02:02.9]} 18. Bg2 {[%clk
0:01:47.5]} 18... Qc7 {[%clk 0:02:02.5]} 19. Be3 {[%clk 0:01:46]} 19... Rad8
{[%clk 0:02:02.1]} 20. Qb3 {[%clk 0:01:44.1]} 20... Be6 {[%clk 0:02:00.1]} 21.
Qc2 {[%clk 0:01:43.4]} 21... Bf5 {[%clk 0:01:54.3]} 22. Qb3 {[%clk 0:01:41.5]}
22... Bg7 {[%clk 0:01:47.8]} 23. Rad1 {[%clk 0:01:36.8]} 23... Rxd1 {[%clk
0:01:44.1]} 24. Rxd1 {[%clk 0:01:32.1]} 24... Be6 {[%clk 0:01:42.9]} 25. Qa3
{[%clk 0:01:26.1]} 25... a6 {[%clk 0:01:42.2]} 26. Bf4 {[%clk 0:01:19]} 26...
Qb6 {[%clk 0:01:34.9]} 27. Be3 {[%clk 0:01:14.9]} 27... Qb5 {[%clk 0:01:29.7]}
28. Bf1 {[%clk 0:01:10.4]} 28... Bc4 {[%clk 0:01:27.5]} 29. Bxc4 {[%clk
0:01:00.9]} 29... Qxc4 {[%clk 0:01:27.7]} 30. Rd7 {[%clk 0:00:58.4]} 30... Qb5
{[%clk 0:01:14.8]} 31. Qb3 {[%clk 0:00:51.2]} 31... Qf5 {[%clk 0:00:57.8]} 32.
Qxb7 {[%clk 0:00:28.5]} 32... Qb1+ {[%clk 0:00:57.4]} 33. Kg2 {[%clk 0:00:28.1]}
33... Qe4+ {[%clk 0:00:55]} 34. Kg1 {[%clk 0:00:27.7]} 34... Qb1+ {[%clk
0:00:54.8]} 35. Kg2 {[%clk 0:00:27.4]} 35... Qe4+ {[%clk 0:00:54]} 36. Kg1
{[%clk 0:00:27.1]} 36... Qb1+ {[%clk 0:00:54.1]} 1/2-1/2

[Event "Betsys MČR v online bleskovém šachu 2021"]
[Site "Chess.com"]
[Date "2021.04.17"]
[Round "8"]
[White "CZMaster666"]
[Black "RadosC"]
[Result "0-1"]
[WhiteElo "1926"]
[BlackElo "2491"]
[TimeControl "180+1"]
[EndTime "10:20:21 PDT"]
[Termination "Uživatel RadosC zvítězil matem"]

1. e4 {[%clk 0:03:00.9]} 1... c5 {[%clk 0:02:59.4]} 2. Nf3 {[%clk 0:03:01.1]}
2... Nc6 {[%clk 0:02:59.6]} 3. d4 {[%clk 0:03:01.8]} 3... cxd4 {[%clk
0:02:59.5]} 4. Nxd4 {[%clk 0:03:02.7]} 4... Nf6 {[%clk 0:03:00]} 5. Nc3 {[%clk
0:03:02.6]} 5... e5 {[%clk 0:03:00.6]} 6. Ndb5 {[%clk 0:03:00.8]} 6... d6 {[%clk
0:03:00.7]} 7. Bg5 {[%clk 0:02:59.8]} 7... a6 {[%clk 0:03:01]} 8. Na3 {[%clk
0:03:00.4]} 8... b5 {[%clk 0:03:01]} 9. Nd5 {[%clk 0:03:00.8]} 9... Be7 {[%clk
0:03:01]} 10. Bxf6 {[%clk 0:03:01.4]} 10... Bxf6 {[%clk 0:03:01]} 11. c3 {[%clk
0:03:02.3]} 11... Ne7 {[%clk 0:03:01.1]} 12. Nc2 {[%clk 0:02:59.6]} 12... Nxd5
{[%clk 0:02:56]} 13. Qxd5 {[%clk 0:03:00.5]} 13... Rb8 {[%clk 0:02:45.7]} 14.
Nb4 {[%clk 0:03:00.5]} 14... Bb7 {[%clk 0:02:43.1]} 15. Qd3 {[%clk 0:03:00.7]}
15... O-O {[%clk 0:02:41.9]} 16. Be2 {[%clk 0:03:00.5]} 16... Bg5 {[%clk
0:02:30]} 17. Rd1 {[%clk 0:02:57.9]} 17... a5 {[%clk 0:02:28.6]} 18. Nd5 {[%clk
0:02:52.1]} 18... Bc6 {[%clk 0:02:26.8]} 19. O-O {[%clk 0:02:50.1]} 19... g6
{[%clk 0:02:22.7]} 20. b4 {[%clk 0:02:49.9]} 20... f5 {[%clk 0:02:08.4]} 21.
exf5 {[%clk 0:02:47.4]} 21... gxf5 {[%clk 0:02:06]} 22. f4 {[%clk 0:02:38.7]}
22... e4 {[%clk 0:01:59.7]} 23. Qg3 {[%clk 0:02:37.6]} 23... Kh8 {[%clk
0:01:55.6]} 24. Qxg5 {[%clk 0:02:34.6]} 24... Qd7 {[%clk 0:01:46.6]} 25. Nf6
{[%clk 0:02:21.8]} 25... Qe6 {[%clk 0:01:38]} 26. Nh5 {[%clk 0:02:14.8]} 26...
Rf7 {[%clk 0:01:36]} 27. Rd4 {[%clk 0:02:05.4]} 27... Rg8 {[%clk 0:01:35.1]} 28.
Qh4 {[%clk 0:02:05.1]} 28... Qxa2 {[%clk 0:01:28.6]} 29. Nf6 {[%clk 0:01:43.4]}
29... Rxg2+ {[%clk 0:01:01.4]} 30. Kxg2 {[%clk 0:01:40.3]} 30... Qxe2+ {[%clk
0:01:01]} 31. Rf2 {[%clk 0:01:39.6]} 31... e3+ {[%clk 0:01:00.9]} 32. Kh3 {[%clk
0:01:31.5]} 32... exf2 {[%clk 0:00:53.5]} 33. Qg3 {[%clk 0:01:05.6]} 33... f1=Q+
{[%clk 0:00:49.8]} 34. Kh4 {[%clk 0:01:05.8]} 34... Rxf6 {[%clk 0:00:42.8]} 35.
Rxd6 {[%clk 0:00:51.6]} 35... Rxd6 {[%clk 0:00:35.8]} 36. Qg5 {[%clk 0:00:43.6]}
36... Qxh2# {[%clk 0:00:33.6]} 0-1

[Event "Betsys MČR v online bleskovém šachu 2021"]
[Site "Chess.com"]
[Date "2021.04.17"]
[Round "8"]
[White "Maldaj"]
[Black "VitaRasik"]
[Result "0-1"]
[WhiteElo "2414"]
[BlackElo "2618"]
[TimeControl "180+1"]
[EndTime "10:20:22 PDT"]
[Termination "Uživatel VitaRasik zvítězil po vzdání soupeře"]

1. e4 {[%clk 0:03:00.9]} 1... d6 {[%clk 0:02:59.6]} 2. d4 {[%clk 0:02:59.2]}
2... g6 {[%clk 0:02:59.7]} 3. Nc3 {[%clk 0:02:59.4]} 3... Bg7 {[%clk 0:02:59.8]}
4. f4 {[%clk 0:02:57.8]} 4... Nf6 {[%clk 0:02:58.7]} 5. Nf3 {[%clk 0:02:57.5]}
5... O-O {[%clk 0:02:58.7]} 6. e5 {[%clk 0:02:54.9]} 6... dxe5 {[%clk
0:02:56.8]} 7. fxe5 {[%clk 0:02:55.8]} 7... Nd5 {[%clk 0:02:56.2]} 8. Bc4 {[%clk
0:02:55.6]} 8... Be6 {[%clk 0:02:56.2]} 9. Bb3 {[%clk 0:02:51.9]} 9... c5 {[%clk
0:02:49.3]} 10. O-O {[%clk 0:02:46.2]} 10... cxd4 {[%clk 0:02:41.7]} 11. Nxd4
{[%clk 0:02:43.6]} 11... Nxc3 {[%clk 0:02:41.4]} 12. bxc3 {[%clk 0:02:40.4]}
12... Bxb3 {[%clk 0:02:40.3]} 13. axb3 {[%clk 0:02:39.7]} 13... Bxe5 {[%clk
0:02:33.4]} 14. Bh6 {[%clk 0:02:39.9]} 14... Bg7 {[%clk 0:02:33.3]} 15. Bxg7
{[%clk 0:02:39.4]} 15... Kxg7 {[%clk 0:02:33.6]} 16. Qf3 {[%clk 0:02:39.8]}
16... Nc6 {[%clk 0:02:08]} 17. Nxc6 {[%clk 0:02:34.4]} 17... bxc6 {[%clk
0:02:08.1]} 18. Qxc6 {[%clk 0:02:34.7]} 18... Qb6+ {[%clk 0:01:58]} 19. Qxb6
{[%clk 0:02:33.8]} 19... axb6 {[%clk 0:01:58.2]} 20. c4 {[%clk 0:02:27.8]} 20...
e5 {[%clk 0:01:53.2]} 21. Kf2 {[%clk 0:02:26.3]} 21... f5 {[%clk 0:01:52.1]} 22.
Ke3 {[%clk 0:02:25.7]} 22... Kf6 {[%clk 0:01:49.2]} 23. Rfd1 {[%clk 0:02:25.6]}
23... Ke6 {[%clk 0:01:48.9]} 24. b4 {[%clk 0:02:21]} 24... Rxa1 {[%clk
0:01:17.3]} 25. Rxa1 {[%clk 0:02:20.2]} 25... Rc8 {[%clk 0:01:17.5]} 26. Ra6
{[%clk 0:02:08.5]} 26... Rxc4 {[%clk 0:01:16.8]} 27. Rxb6+ {[%clk 0:02:08]}
27... Kd5 {[%clk 0:01:15.8]} 28. Rb5+ {[%clk 0:02:05.7]} 28... Kd6 {[%clk
0:01:08.6]} 29. Rb6+ {[%clk 0:02:02.5]} 29... Kc7 {[%clk 0:00:58.1]} 30. Re6
{[%clk 0:02:02.5]} 30... e4 {[%clk 0:00:50.4]} 31. Re7+ {[%clk 0:02:00.2]} 31...
Kd6 {[%clk 0:00:49]} 32. Rxh7 {[%clk 0:01:59.6]} 32... Rxc2 {[%clk 0:00:48.8]}
33. g4 {[%clk 0:01:57.4]} 33... Ke5 {[%clk 0:00:44.2]} 34. gxf5 {[%clk
0:01:55.5]} 34... gxf5 {[%clk 0:00:43.8]} 35. Re7+ {[%clk 0:01:54.4]} 35... Kf6
{[%clk 0:00:43.8]} 36. Rh7 {[%clk 0:01:53.1]} 36... Rb2 {[%clk 0:00:43.5]} 37.
Kf4 {[%clk 0:01:47.7]} 37... Rf2+ {[%clk 0:00:43.4]} 38. Ke3 {[%clk 0:01:45.9]}
38... Rf3+ {[%clk 0:00:40.4]} 39. Ke2 {[%clk 0:01:46]} 39... Rb3 {[%clk
0:00:39.7]} 40. Rh6+ {[%clk 0:01:41.7]} 40... Ke5 {[%clk 0:00:39.1]} 41. Rb6
{[%clk 0:01:41.8]} 41... Kf4 {[%clk 0:00:38.6]} 42. h4 {[%clk 0:01:39.2]} 42...
Rb2+ {[%clk 0:00:38.2]} 43. Kd1 {[%clk 0:01:39.1]} 43... Kf3 {[%clk 0:00:37.2]}
44. h5 {[%clk 0:01:36]} 44... e3 {[%clk 0:00:37.4]} 45. Re6 {[%clk 0:01:35]}
45... Rxb4 {[%clk 0:00:37.2]} 46. h6 {[%clk 0:01:34.9]} 46... Rh4 {[%clk
0:00:36.2]} 47. Re5 {[%clk 0:01:33.4]} 47... f4 {[%clk 0:00:36.4]} 48. Re6
{[%clk 0:01:33.3]} 48... Kf2 {[%clk 0:00:34.7]} 49. Re4 {[%clk 0:01:30.7]} 49...
Rh1+ {[%clk 0:00:32.1]} 50. Kc2 {[%clk 0:01:30.4]} 50... f3 {[%clk 0:00:32.5]}
0-1

[Event "Betsys MČR v online bleskovém šachu 2021"]
[Site "Chess.com"]
[Date "2021.04.17"]
[Round "8"]
[White "Hapinka"]
[Black "AdeeJa"]
[Result "1/2-1/2"]
[WhiteElo "1821"]
[BlackElo "1638"]
[TimeControl "180+1"]
[EndTime "10:20:26 PDT"]
[Termination "Remíza opakováním pozice"]

1. e4 {[%clk 0:03:00.9]} 1... c5 {[%clk 0:02:58.9]} 2. Nf3 {[%clk 0:03:01.3]}
2... Nc6 {[%clk 0:02:57.6]} 3. d4 {[%clk 0:03:01.8]} 3... cxd4 {[%clk
0:02:57.6]} 4. Nxd4 {[%clk 0:03:02.4]} 4... g6 {[%clk 0:02:57.7]} 5. Nc3 {[%clk
0:03:02.7]} 5... Bg7 {[%clk 0:02:57.9]} 6. Be3 {[%clk 0:03:03]} 6... Nf6 {[%clk
0:02:58]} 7. Be2 {[%clk 0:03:02.8]} 7... O-O {[%clk 0:02:57.8]} 8. O-O {[%clk
0:03:03.3]} 8... d5 {[%clk 0:02:57.8]} 9. Nxc6 {[%clk 0:03:00.7]} 9... bxc6
{[%clk 0:02:56.3]} 10. e5 {[%clk 0:03:00.9]} 10... Ne8 {[%clk 0:02:40.1]} 11. f4
{[%clk 0:02:58.3]} 11... Nc7 {[%clk 0:02:37.9]} 12. Bc5 {[%clk 0:02:54.8]} 12...
Ne6 {[%clk 0:02:36.1]} 13. Ba3 {[%clk 0:02:51.9]} 13... Qb6+ {[%clk 0:02:15.3]}
14. Kh1 {[%clk 0:02:50.6]} 14... Nc5 {[%clk 0:02:15.3]} 15. Qd4 {[%clk
0:02:34.1]} 15... Nd7 {[%clk 0:01:39.7]} 16. Qxb6 {[%clk 0:02:33.2]} 16... Nxb6
{[%clk 0:01:35.3]} 17. Bxe7 {[%clk 0:02:31.2]} 17... Re8 {[%clk 0:01:35.2]} 18.
Bd6 {[%clk 0:02:16.7]} 18... Bf5 {[%clk 0:01:31.8]} 19. Bd3 {[%clk 0:02:11.1]}
19... Bxd3 {[%clk 0:01:25]} 20. cxd3 {[%clk 0:02:10.6]} 20... Nc8 {[%clk
0:01:25.1]} 21. Bc5 {[%clk 0:02:06.9]} 21... a5 {[%clk 0:01:19.9]} 22. Rae1
{[%clk 0:01:55.5]} 22... Ne7 {[%clk 0:01:19.3]} 23. Na4 {[%clk 0:01:46.4]} 23...
Nf5 {[%clk 0:01:14.1]} 24. g4 {[%clk 0:01:41.8]} 24... Ne7 {[%clk 0:00:50.5]}
25. f5 {[%clk 0:01:38.4]} 25... gxf5 {[%clk 0:00:38.9]} 26. gxf5 {[%clk
0:01:38.2]} 26... f6 {[%clk 0:00:38.4]} 27. exf6 {[%clk 0:01:10.7]} 27... Bxf6
{[%clk 0:00:37.7]} 28. Re6 {[%clk 0:01:01]} 28... Kf7 {[%clk 0:00:37.4]} 29.
Rfe1 {[%clk 0:00:57]} 29... Nxf5 {[%clk 0:00:34.7]} 30. Rxe8 {[%clk 0:00:46.8]}
30... Rxe8 {[%clk 0:00:34.5]} 31. Rf1 {[%clk 0:00:46.7]} 31... Kg6 {[%clk
0:00:30.2]} 32. Rg1+ {[%clk 0:00:44.3]} 32... Kf7 {[%clk 0:00:28.5]} 33. Rf1
{[%clk 0:00:41.1]} 33... Kg6 {[%clk 0:00:28.2]} 34. Rg1+ {[%clk 0:00:41.3]}
34... Kf7 {[%clk 0:00:28.1]} 35. Rf1 {[%clk 0:00:41.2]} 1/2-1/2

[Event "Betsys MČR v online bleskovém šachu 2021"]
[Site "Chess.com"]
[Date "2021.04.17"]
[Round "8"]
[White "Pantata007"]
[Black "Mitram64"]
[Result "0-1"]
[WhiteElo "2263"]
[BlackElo "2090"]
[TimeControl "180+1"]
[EndTime "10:20:28 PDT"]
[Termination "Uživatel Mitram64 zvítězil na čas"]

1. d4 {[%clk 0:03:00.9]} 1... Nf6 {[%clk 0:02:59.3]} 2. c4 {[%clk 0:02:58.6]}
2... c5 {[%clk 0:02:58.7]} 3. d5 {[%clk 0:02:58.6]} 3... e5 {[%clk 0:02:58]} 4.
Nc3 {[%clk 0:02:58.4]} 4... d6 {[%clk 0:02:57.8]} 5. e4 {[%clk 0:02:58.9]} 5...
Be7 {[%clk 0:02:57.9]} 6. g3 {[%clk 0:02:59.4]} 6... O-O {[%clk 0:02:57.4]} 7.
Bg2 {[%clk 0:02:59.9]} 7... Ne8 {[%clk 0:02:54.3]} 8. Nge2 {[%clk 0:02:56.9]}
8... g6 {[%clk 0:02:53.9]} 9. O-O {[%clk 0:02:56]} 9... Ng7 {[%clk 0:02:53.2]}
10. Be3 {[%clk 0:02:52.5]} 10... Nd7 {[%clk 0:02:51.8]} 11. a3 {[%clk
0:02:50.8]} 11... f5 {[%clk 0:02:49.9]} 12. f4 {[%clk 0:02:50.4]} 12... Bf6
{[%clk 0:02:43.1]} 13. Qc2 {[%clk 0:02:34.2]} 13... Nb6 {[%clk 0:02:24.7]} 14.
b3 {[%clk 0:02:26.5]} 14... fxe4 {[%clk 0:02:20.5]} 15. Nxe4 {[%clk 0:02:25.4]}
15... Nf5 {[%clk 0:02:18.9]} 16. Nxf6+ {[%clk 0:02:11.9]} 16... Qxf6 {[%clk
0:02:17.4]} 17. Bf2 {[%clk 0:02:01.5]} 17... Bd7 {[%clk 0:02:14.1]} 18. fxe5
{[%clk 0:01:54.1]} 18... Qxe5 {[%clk 0:02:09.8]} 19. Rae1 {[%clk 0:01:47.9]}
19... Ne3 {[%clk 0:02:06.2]} 20. Bxe3 {[%clk 0:01:47.2]} 20... Qxe3+ {[%clk
0:02:05.7]} 21. Kh1 {[%clk 0:01:47.8]} 21... Rae8 {[%clk 0:01:58.9]} 22. Ng1
{[%clk 0:01:29.9]} 22... Qd4 {[%clk 0:01:44.9]} 23. Rxf8+ {[%clk 0:01:15.2]}
23... Rxf8 {[%clk 0:01:42]} 24. Nf3 {[%clk 0:01:11.1]} 24... Qf6 {[%clk
0:01:36.8]} 25. a4 {[%clk 0:00:51]} 25... Bf5 {[%clk 0:01:32.5]} 26. Qd2 {[%clk
0:00:50.3]} 26... Nd7 {[%clk 0:01:27.4]} 27. Qe2 {[%clk 0:00:27.7]} 27... Bg4
{[%clk 0:01:25.5]} 28. Rf1 {[%clk 0:00:05.5]} 28... Qc3 {[%clk 0:01:16.1]} 29.
Qe1 {[%clk 0:00:02.5]} 29... Qxb3 {[%clk 0:01:09.4]} 30. Qe7 {[%clk 0:00:02.5]}
30... Qc3 {[%clk 0:01:02.2]} 0-1